[Event "Early-Titled-Tuesday-Blitz-October-10-2023"]
[Site "Chess.com"]
[Date "2023.10.10"]
[Round "8"]
[White "lluiss"]
[Black "Irishchessman16"]
[Result "0-1"]
[WhiteElo "2196"]
[BlackElo "2458"]
[TimeControl "180+1"]
[EndTime "9:24:15 PDT"]
[Termination "Irishchessman16 won by resignation"]

1. Nf3 {[%clk 0:03:00.9]} 1... c5 {[%clk 0:02:51.9]} 2. c4 {[%clk 0:02:59.9]}
2... Nc6 {[%clk 0:02:51]} 3. Nc3 {[%clk 0:02:59.2]} 3... e5 {[%clk 0:02:48.7]}
4. e3 {[%clk 0:02:52.3]} 4... Nf6 {[%clk 0:02:46.3]} 5. d4 {[%clk 0:02:50.8]}
5... e4 {[%clk 0:02:45.6]} 6. d5 {[%clk 0:02:51.1]} 6... exf3 {[%clk 0:02:45.2]}
7. dxc6 {[%clk 0:02:50.4]} 7... bxc6 {[%clk 0:02:39.2]} 8. Qxf3 {[%clk
0:02:46.9]} 8... Be7 {[%clk 0:02:38.7]} 9. Be2 {[%clk 0:02:30.3]} 9... O-O
{[%clk 0:02:36.8]} 10. O-O {[%clk 0:02:29.3]} 10... Rb8 {[%clk 0:02:32.4]} 11.
Rd1 {[%clk 0:02:26.8]} 11... Qc7 {[%clk 0:02:27]} 12. b3 {[%clk 0:02:16.4]}
12... d6 {[%clk 0:02:26]} 13. h3 {[%clk 0:02:14.7]} 13... Nd7 {[%clk 0:02:24.6]}
14. Ne4 {[%clk 0:02:06.6]} 14... f5 {[%clk 0:02:21.9]} 15. Ng3 {[%clk
0:02:01.3]} 15... Ne5 {[%clk 0:02:18.2]} 16. Qh5 {[%clk 0:01:56.4]} 16... g6
{[%clk 0:02:14.8]} 17. Qh6 {[%clk 0:01:56]} 17... Nf7 {[%clk 0:02:13.4]} 18.
Qxf8+ {[%clk 0:01:35.6]} 18... Bxf8 {[%clk 0:02:12.1]} 19. Bb2 {[%clk
0:01:34.1]} 19... Bg7 {[%clk 0:02:12]} 20. Bxg7 {[%clk 0:01:31.7]} 20... Kxg7
{[%clk 0:02:12.9]} 21. Rd2 {[%clk 0:01:31.6]} 21... Be6 {[%clk 0:02:13.1]} 22.
Rad1 {[%clk 0:01:31.2]} 22... Rd8 {[%clk 0:02:13.3]} 23. Bf3 {[%clk 0:01:31.4]}
23... Ne5 {[%clk 0:02:11.6]} 24. Be2 {[%clk 0:01:30.7]} 24... d5 {[%clk
0:02:11.2]} 25. f4 {[%clk 0:01:30.9]} 25... Nf7 {[%clk 0:02:09.7]} 26. Bf3
{[%clk 0:01:30.8]} 26... dxc4 {[%clk 0:02:07.8]} 27. Rxd8 {[%clk 0:01:25.4]}
27... Nxd8 {[%clk 0:02:08.7]} 28. bxc4 {[%clk 0:01:22.8]} 28... Bxc4 {[%clk
0:02:07.9]} 29. e4 {[%clk 0:01:20.8]} 29... Qxf4 {[%clk 0:02:05.2]} 30. Rxd8
{[%clk 0:01:14.6]} 30... Qxg3 {[%clk 0:02:03.7]} 31. exf5 {[%clk 0:01:14.9]}
31... gxf5 {[%clk 0:01:57.3]} 32. Rd7+ {[%clk 0:01:13.3]} 32... Kf6 {[%clk
0:01:57.1]} 33. Rxa7 {[%clk 0:01:14.2]} 33... Bd5 {[%clk 0:01:56.5]} 34. Bxd5
{[%clk 0:01:11.4]} 34... cxd5 {[%clk 0:01:57.4]} 0-1

[Event "Early-Titled-Tuesday-Blitz-October-10-2023"]
[Site "Chess.com"]
[Date "2023.10.10"]
[Round "8"]
[White "LeninGuerra"]
[Black "Ali_rastbod"]
[Result "1-0"]
[WhiteElo "2608"]
[BlackElo "2739"]
[TimeControl "180+1"]
[EndTime "9:24:30 PDT"]
[Termination "LeninGuerra won by resignation"]

1. e4 {[%clk 0:02:51.5]} 1... c6 {[%clk 0:02:58.9]} 2. Nf3 {[%clk 0:02:46.4]}
2... d5 {[%clk 0:02:59.4]} 3. exd5 {[%clk 0:02:44.9]} 3... cxd5 {[%clk
0:02:59.4]} 4. Bb5+ {[%clk 0:02:45.3]} 4... Bd7 {[%clk 0:02:58.5]} 5. Bxd7+
{[%clk 0:02:43.3]} 5... Qxd7 {[%clk 0:02:59.4]} 6. O-O {[%clk 0:02:43.2]} 6...
Nc6 {[%clk 0:02:58.8]} 7. b3 {[%clk 0:02:42.7]} 7... Nf6 {[%clk 0:02:44.5]} 8.
Bb2 {[%clk 0:02:42.4]} 8... e6 {[%clk 0:02:44.9]} 9. Re1 {[%clk 0:02:42.5]} 9...
Bd6 {[%clk 0:02:40.1]} 10. d3 {[%clk 0:02:42.4]} 10... O-O {[%clk 0:02:38.8]}
11. Nbd2 {[%clk 0:02:40.9]} 11... Rfe8 {[%clk 0:02:38.2]} 12. Bxf6 {[%clk
0:02:07.3]} 12... gxf6 {[%clk 0:02:36.8]} 13. c4 {[%clk 0:02:07.9]} 13... Bf8
{[%clk 0:02:19.4]} 14. Nf1 {[%clk 0:01:56.5]} 14... dxc4 {[%clk 0:01:49.4]} 15.
dxc4 {[%clk 0:01:55.8]} 15... Qxd1 {[%clk 0:01:50.3]} 16. Raxd1 {[%clk 0:01:55]}
16... a6 {[%clk 0:01:49.5]} 17. Rd7 {[%clk 0:01:53.2]} 17... Re7 {[%clk
0:01:45.3]} 18. Red1 {[%clk 0:01:52.4]} 18... b5 {[%clk 0:01:45.2]} 19. Ne3
{[%clk 0:01:49.1]} 19... Nb4 {[%clk 0:01:38.5]} 20. Ng4 {[%clk 0:01:11.4]} 20...
Kg7 {[%clk 0:01:37.7]} 21. a4 {[%clk 0:01:01.7]} 21... bxa4 {[%clk 0:01:34.5]}
22. bxa4 {[%clk 0:01:02.6]} 22... Rc8 {[%clk 0:01:30.3]} 23. Ne3 {[%clk
0:01:00.2]} 1-0

[Event "Early-Titled-Tuesday-Blitz-October-10-2023"]
[Site "Chess.com"]
[Date "2023.10.10"]
[Round "8"]
[White "Legendinunknown"]
[Black "ArtemDyachuk"]
[Result "0-1"]
[WhiteElo "2817"]
[BlackElo "2692"]
[TimeControl "180+1"]
[EndTime "9:24:34 PDT"]
[Termination "ArtemDyachuk won by resignation"]

1. d4 {[%clk 0:03:00.9]} 1... Nf6 {[%clk 0:02:58]} 2. c4 {[%clk 0:02:59.4]} 2...
e6 {[%clk 0:02:57.2]} 3. Nc3 {[%clk 0:02:59.2]} 3... c5 {[%clk 0:02:57.2]} 4. d5
{[%clk 0:02:59.2]} 4... exd5 {[%clk 0:02:56.8]} 5. cxd5 {[%clk 0:02:58.7]} 5...
d6 {[%clk 0:02:56.6]} 6. e4 {[%clk 0:02:59.2]} 6... g6 {[%clk 0:02:55.4]} 7. Bd3
{[%clk 0:02:59.7]} 7... Bg7 {[%clk 0:02:55.2]} 8. Nge2 {[%clk 0:02:59.8]} 8...
O-O {[%clk 0:02:54.8]} 9. O-O {[%clk 0:03:00]} 9... Re8 {[%clk 0:02:46]} 10. Bg5
{[%clk 0:02:56.3]} 10... h6 {[%clk 0:02:44.6]} 11. Bh4 {[%clk 0:02:56.3]} 11...
g5 {[%clk 0:02:44.6]} 12. Bg3 {[%clk 0:02:56.4]} 12... Nh5 {[%clk 0:02:44.8]}
13. f4 {[%clk 0:02:55.8]} 13... Nxg3 {[%clk 0:02:34.4]} 14. hxg3 {[%clk
0:02:54.3]} 14... Bg4 {[%clk 0:02:29]} 15. Qd2 {[%clk 0:02:49.2]} 15... Nd7
{[%clk 0:02:27.3]} 16. e5 {[%clk 0:02:45.4]} 16... dxe5 {[%clk 0:02:25.5]} 17.
f5 {[%clk 0:02:45.6]} 17... Nf6 {[%clk 0:01:49.7]} 18. Bb5 {[%clk 0:02:35.5]}
18... Rf8 {[%clk 0:01:34]} 19. Nc1 {[%clk 0:02:26.2]} 19... a6 {[%clk 0:01:28]}
20. Be2 {[%clk 0:02:23.6]} 20... Bxe2 {[%clk 0:01:26.2]} 21. N1xe2 {[%clk
0:02:24.5]} 21... b5 {[%clk 0:01:25]} 22. Rad1 {[%clk 0:02:18.5]} 22... Qa5
{[%clk 0:01:20.8]} 23. Nc1 {[%clk 0:02:14.2]} 23... b4 {[%clk 0:01:17.3]} 24.
N3e2 {[%clk 0:02:04.4]} 24... Rad8 {[%clk 0:01:16.5]} 25. Nb3 {[%clk 0:01:57.4]}
25... Qb6 {[%clk 0:01:15.4]} 26. Qe3 {[%clk 0:01:55.2]} 26... Nxd5 {[%clk
0:01:11]} 27. Qxc5 {[%clk 0:01:52.5]} 27... Qxc5+ {[%clk 0:01:02.4]} 28. Nxc5
{[%clk 0:01:53.4]} 28... Ne3 {[%clk 0:01:03.1]} 29. Rxd8 {[%clk 0:01:52.8]}
29... Rxd8 {[%clk 0:01:04]} 30. Rf3 {[%clk 0:01:53.2]} 30... Rd1+ {[%clk
0:01:01.5]} 31. Kh2 {[%clk 0:01:48.9]} 31... Ng4+ {[%clk 0:01:00.9]} 32. Kh3
{[%clk 0:01:49.8]} 32... h5 {[%clk 0:00:59.3]} 0-1

[Event "Early-Titled-Tuesday-Blitz-October-10-2023"]
[Site "Chess.com"]
[Date "2023.10.10"]
[Round "8"]
[White "secretsuperstar7"]
[Black "BigAl"]
[Result "1-0"]
[WhiteElo "2448"]
[BlackElo "2590"]
[TimeControl "180+1"]
[EndTime "9:25:03 PDT"]
[Termination "secretsuperstar7 won on time"]

1. c4 {[%clk 0:03:00.9]} 1... g6 {[%clk 0:02:59.6]} 2. Nc3 {[%clk 0:02:59.9]}
2... Bg7 {[%clk 0:02:51.7]} 3. g3 {[%clk 0:03:00]} 3... d6 {[%clk 0:02:51.2]} 4.
Bg2 {[%clk 0:02:59.2]} 4... Nf6 {[%clk 0:02:52.1]} 5. e4 {[%clk 0:02:58.7]} 5...
O-O {[%clk 0:02:46.3]} 6. Nge2 {[%clk 0:02:58.4]} 6... c5 {[%clk 0:02:42.2]} 7.
O-O {[%clk 0:02:58]} 7... Nc6 {[%clk 0:02:35.2]} 8. a3 {[%clk 0:02:57.4]} 8...
Ne8 {[%clk 0:02:30]} 9. Rb1 {[%clk 0:02:57.1]} 9... a5 {[%clk 0:02:27.9]} 10. d3
{[%clk 0:02:53.8]} 10... Nc7 {[%clk 0:02:06.1]} 11. Be3 {[%clk 0:02:53]} 11...
Ne6 {[%clk 0:02:06]} 12. Nd5 {[%clk 0:02:46]} 12... a4 {[%clk 0:01:32.8]} 13.
Nec3 {[%clk 0:02:35.4]} 13... Ned4 {[%clk 0:01:05.2]} 14. Nxa4 {[%clk
0:02:25.6]} 14... Ne5 {[%clk 0:00:46.9]} 15. Ndb6 {[%clk 0:02:09.1]} 15... Ra6
{[%clk 0:00:18.8]} 16. b4 {[%clk 0:02:06.6]} 16... Bg4 {[%clk 0:00:16.8]} 17. f3
{[%clk 0:02:03.1]} 17... Bd7 {[%clk 0:00:10.8]} 18. b5 {[%clk 0:01:48.7]} 18...
Ra7 {[%clk 0:00:09.5]} 19. Nd5 {[%clk 0:01:46.7]} 19... e6 {[%clk 0:00:02.8]}
20. Ndc3 {[%clk 0:01:44.3]} 1-0

[Event "Early-Titled-Tuesday-Blitz-October-10-2023"]
[Site "Chess.com"]
[Date "2023.10.10"]
[Round "8"]
[White "Agibileg"]
[Black "surrenderPLS"]
[Result "1-0"]
[WhiteElo "2702"]
[BlackElo "2515"]
[TimeControl "180+1"]
[EndTime "9:25:13 PDT"]
[Termination "Agibileg won by resignation"]

1. d4 {[%clk 0:03:00.9]} 1... Nf6 {[%clk 0:02:59.8]} 2. c4 {[%clk 0:02:58.2]}
2... e6 {[%clk 0:02:59.8]} 3. Nc3 {[%clk 0:02:58.4]} 3... Bb4 {[%clk 0:02:59.8]}
4. f3 {[%clk 0:02:58.8]} 4... d5 {[%clk 0:02:55.8]} 5. a3 {[%clk 0:02:58.1]}
5... Be7 {[%clk 0:02:55.8]} 6. e4 {[%clk 0:02:56.6]} 6... dxe4 {[%clk
0:02:56.7]} 7. fxe4 {[%clk 0:02:57.5]} 7... c5 {[%clk 0:02:57.3]} 8. d5 {[%clk
0:02:58]} 8... exd5 {[%clk 0:02:57.6]} 9. exd5 {[%clk 0:02:58.9]} 9... O-O
{[%clk 0:02:54.5]} 10. Nf3 {[%clk 0:02:59.8]} 10... Bd6 {[%clk 0:02:54.2]} 11.
Be2 {[%clk 0:02:53.9]} 11... Re8 {[%clk 0:02:52.4]} 12. O-O {[%clk 0:02:54.4]}
12... h6 {[%clk 0:02:52.2]} 13. Nb5 {[%clk 0:02:53.7]} 13... Bg4 {[%clk
0:02:49.8]} 14. Nxd6 {[%clk 0:02:48.5]} 14... Qxd6 {[%clk 0:02:50.7]} 15. Nd4
{[%clk 0:02:34.7]} 15... Bxe2 {[%clk 0:02:05.7]} 16. Nxe2 {[%clk 0:02:28.5]}
16... Nbd7 {[%clk 0:02:00.5]} 17. Bf4 {[%clk 0:02:25]} 17... Qb6 {[%clk
0:01:54.7]} 18. Qc2 {[%clk 0:02:19.8]} 18... Re7 {[%clk 0:01:38.4]} 19. Ng3
{[%clk 0:02:17.9]} 19... Rae8 {[%clk 0:01:38.2]} 20. h3 {[%clk 0:02:08]} 20...
a6 {[%clk 0:01:04.5]} 21. Rad1 {[%clk 0:02:07.1]} 21... Ne5 {[%clk 0:00:33.7]}
22. Nf5 {[%clk 0:02:04.4]} 22... Rd7 {[%clk 0:00:33.9]} 23. Qc3 {[%clk
0:02:02.3]} 23... Ng6 {[%clk 0:00:33.4]} 24. Bxh6 {[%clk 0:02:01.3]} 24... gxh6
{[%clk 0:00:30]} 25. Nxh6+ {[%clk 0:01:59.2]} 25... Kg7 {[%clk 0:00:30.2]} 26.
Rxf6 {[%clk 0:01:59.3]} 26... Re3 {[%clk 0:00:17.5]} 27. Nf5+ {[%clk 0:01:57.5]}
27... Kg8 {[%clk 0:00:16.3]} 28. Nxe3 {[%clk 0:01:52.2]} 28... Qxf6 {[%clk
0:00:14.6]} 29. Qxf6 {[%clk 0:01:51.3]} 1-0

[Event "Early-Titled-Tuesday-Blitz-October-10-2023"]
[Site "Chess.com"]
[Date "2023.10.10"]
[Round "8"]
[White "Bilan_Danila"]
[Black "SALVA-DALI"]
[Result "0-1"]
[WhiteElo "2595"]
[BlackElo "2769"]
[TimeControl "180+1"]
[EndTime "9:25:20 PDT"]
[Termination "SALVA-DALI won on time"]

1. d4 {[%clk 0:02:53.9]} 1... Nf6 {[%clk 0:02:58.7]} 2. Nf3 {[%clk 0:02:53.8]}
2... g6 {[%clk 0:02:59.1]} 3. Bg5 {[%clk 0:02:53.5]} 3... Bg7 {[%clk 0:02:59.6]}
4. c3 {[%clk 0:02:53.7]} 4... d5 {[%clk 0:02:59.9]} 5. Nbd2 {[%clk 0:02:53.8]}
5... O-O {[%clk 0:03:00.5]} 6. e3 {[%clk 0:02:54.2]} 6... c5 {[%clk 0:03:01.2]}
7. Bd3 {[%clk 0:02:54.1]} 7... Nfd7 {[%clk 0:03:01.9]} 8. O-O {[%clk 0:02:43.7]}
8... Nc6 {[%clk 0:03:02.6]} 9. Re1 {[%clk 0:02:39]} 9... Qc7 {[%clk 0:03:02.4]}
10. Bf4 {[%clk 0:01:38.1]} 10... Qb6 {[%clk 0:03:02.1]} 11. Rb1 {[%clk
0:01:25.7]} 11... e5 {[%clk 0:03:02]} 12. dxe5 {[%clk 0:01:18.8]} 12... Ndxe5
{[%clk 0:03:02.6]} 13. Nxe5 {[%clk 0:01:17.8]} 13... Nxe5 {[%clk 0:03:03.4]} 14.
Bc2 {[%clk 0:01:13.8]} 14... Bg4 {[%clk 0:03:00.1]} 15. f3 {[%clk 0:00:59.2]}
15... Be6 {[%clk 0:02:59.7]} 16. Qe2 {[%clk 0:00:51.5]} 16... Rad8 {[%clk
0:02:59.2]} 17. Kh1 {[%clk 0:00:42.1]} 17... Rfe8 {[%clk 0:02:57.9]} 18. Qf2
{[%clk 0:00:40]} 18... Qa6 {[%clk 0:02:54.3]} 19. Ra1 {[%clk 0:00:33.2]} 19...
Nd3 {[%clk 0:02:54.3]} 20. Bxd3 {[%clk 0:00:24.9]} 20... Qxd3 {[%clk 0:02:55.2]}
21. Nb3 {[%clk 0:00:22.4]} 21... b6 {[%clk 0:02:55]} 22. Rad1 {[%clk 0:00:18.4]}
22... Qb5 {[%clk 0:02:55.1]} 23. Qh4 {[%clk 0:00:16.4]} 23... Qa4 {[%clk
0:02:54.7]} 24. Nc1 {[%clk 0:00:14.5]} 24... Rd7 {[%clk 0:02:43.6]} 25. b3
{[%clk 0:00:14.5]} 25... Qc6 {[%clk 0:02:43.4]} 26. Bh6 {[%clk 0:00:14.7]} 26...
Bxc3 {[%clk 0:02:43]} 27. Ne2 {[%clk 0:00:11.4]} 27... Bh8 {[%clk 0:02:43.1]}
28. Bg5 {[%clk 0:00:08.6]} 28... Bf5 {[%clk 0:02:42.9]} 29. Ng3 {[%clk
0:00:07.6]} 29... Bc2 {[%clk 0:02:40]} 30. Rc1 {[%clk 0:00:07.5]} 30... Bd3
{[%clk 0:02:39]} 31. Rcd1 {[%clk 0:00:07.5]} 31... c4 {[%clk 0:02:39.5]} 32.
bxc4 {[%clk 0:00:07.1]} 32... dxc4 {[%clk 0:02:40.2]} 33. Qg4 {[%clk 0:00:04.3]}
33... c3 {[%clk 0:02:36.6]} 34. e4 {[%clk 0:00:04.5]} 34... c2 {[%clk
0:02:35.5]} 35. Rc1 {[%clk 0:00:04.8]} 35... Qe6 {[%clk 0:02:34.5]} 36. Qh4
{[%clk 0:00:04.6]} 36... Bb2 {[%clk 0:02:33.9]} 37. Bd2 {[%clk 0:00:03.8]} 37...
Bf6 {[%clk 0:02:29.8]} 38. Qh6 {[%clk 0:00:03.3]} 38... Qxa2 {[%clk 0:02:24.6]}
39. h3 {[%clk 0:00:02.5]} 39... Qe6 {[%clk 0:02:24]} 40. Ne2 {[%clk 0:00:01.5]}
40... Bxe2 {[%clk 0:02:23.6]} 41. Rxe2 {[%clk 0:00:01.9]} 41... Qc4 {[%clk
0:02:23.6]} 42. Rf2 {[%clk 0:00:01.9]} 42... Bb2 {[%clk 0:02:22.7]} 0-1

[Event "Early-Titled-Tuesday-Blitz-October-10-2023"]
[Site "Chess.com"]
[Date "2023.10.10"]
[Round "8"]
[White "m_ezat"]
[Black "MikeSailer"]
[Result "1-0"]
[WhiteElo "2482"]
[BlackElo "2142"]
[TimeControl "180+1"]
[EndTime "9:25:26 PDT"]
[Termination "m_ezat won by resignation"]

1. e4 {[%clk 0:03:00.9]} 1... d5 {[%clk 0:02:59.7]} 2. exd5 {[%clk 0:02:56.9]}
2... Qxd5 {[%clk 0:02:55.1]} 3. d4 {[%clk 0:02:57.8]} 3... Nc6 {[%clk
0:02:54.8]} 4. Nf3 {[%clk 0:02:54.5]} 4... Bg4 {[%clk 0:02:49]} 5. Be2 {[%clk
0:02:54.8]} 5... O-O-O {[%clk 0:02:43.7]} 6. Be3 {[%clk 0:02:50.6]} 6... Nf6
{[%clk 0:02:26.1]} 7. Nc3 {[%clk 0:02:48.8]} 7... Qa5 {[%clk 0:02:18]} 8. h3
{[%clk 0:02:44.5]} 8... Bxf3 {[%clk 0:02:08.1]} 9. Bxf3 {[%clk 0:02:44]} 9...
Nxd4 {[%clk 0:02:02.3]} 10. Bxd4 {[%clk 0:02:43]} 10... e5 {[%clk 0:02:02.3]}
11. O-O {[%clk 0:02:35.3]} 11... exd4 {[%clk 0:01:52]} 12. Ne4 {[%clk
0:02:36.2]} 12... Nxe4 {[%clk 0:01:50.5]} 13. Bxe4 {[%clk 0:02:33.7]} 13... Bd6
{[%clk 0:01:50.7]} 14. Qf3 {[%clk 0:02:32.6]} 14... c6 {[%clk 0:01:43]} 15. b4
{[%clk 0:02:27]} 15... Qe5 {[%clk 0:01:42.8]} 16. g3 {[%clk 0:02:26.7]} 16...
Rhf8 {[%clk 0:01:28]} 17. b5 {[%clk 0:02:17.4]} 17... f5 {[%clk 0:01:07.1]} 18.
Bd3 {[%clk 0:02:16.7]} 18... c5 {[%clk 0:00:54.9]} 19. b6 {[%clk 0:02:15.2]}
19... axb6 {[%clk 0:00:53.2]} 20. Rfe1 {[%clk 0:02:12.2]} 20... Qf6 {[%clk
0:00:49.4]} 21. Rab1 {[%clk 0:02:10.5]} 21... Bc7 {[%clk 0:00:44.5]} 22. a4
{[%clk 0:02:07.1]} 22... g6 {[%clk 0:00:38.7]} 23. a5 {[%clk 0:02:06.6]} 23...
Qc6 {[%clk 0:00:39.1]} 24. Qe2 {[%clk 0:01:58.5]} 24... bxa5 {[%clk 0:00:36.9]}
25. Bb5 {[%clk 0:01:58]} 25... Qd5 {[%clk 0:00:29.9]} 26. Bc4 {[%clk 0:01:56.9]}
26... Qd6 {[%clk 0:00:28]} 27. Qf3 {[%clk 0:01:55.9]} 27... b6 {[%clk
0:00:19.9]} 28. Re6 {[%clk 0:01:52.7]} 28... Qd5 {[%clk 0:00:10.6]} 29. Bxd5
{[%clk 0:01:52.1]} 1-0

[Event "Early-Titled-Tuesday-Blitz-October-10-2023"]
[Site "Chess.com"]
[Date "2023.10.10"]
[Round "8"]
[White "Jospem"]
[Black "FairChess_on_YouTube"]
[Result "0-1"]
[WhiteElo "3092"]
[BlackElo "3069"]
[TimeControl "180+1"]
[EndTime "9:25:32 PDT"]
[Termination "FairChess_on_YouTube won by resignation"]

1. e4 {[%clk 0:03:00.9]} 1... c5 {[%clk 0:02:56.8]} 2. Nf3 {[%clk 0:03:01.6]}
2... e6 {[%clk 0:02:54.3]} 3. c3 {[%clk 0:03:02.2]} 3... d5 {[%clk 0:02:51.9]}
4. e5 {[%clk 0:03:02.6]} 4... d4 {[%clk 0:02:50.6]} 5. g3 {[%clk 0:03:03.3]}
5... g5 {[%clk 0:02:36.3]} 6. h3 {[%clk 0:03:02.3]} 6... Nc6 {[%clk 0:02:34.9]}
7. d3 {[%clk 0:03:01.9]} 7... h6 {[%clk 0:02:33.7]} 8. Bg2 {[%clk 0:03:01.8]}
8... Bg7 {[%clk 0:02:30]} 9. Qe2 {[%clk 0:02:52.1]} 9... Nge7 {[%clk 0:02:26.8]}
10. Nbd2 {[%clk 0:02:43.4]} 10... Ng6 {[%clk 0:02:09.7]} 11. Nc4 {[%clk
0:02:43.3]} 11... O-O {[%clk 0:02:10.1]} 12. O-O {[%clk 0:02:34]} 12... b5
{[%clk 0:01:52.6]} 13. Nd6 {[%clk 0:02:22.6]} 13... Ba6 {[%clk 0:01:52.4]} 14.
c4 {[%clk 0:02:16.1]} 14... bxc4 {[%clk 0:01:43.8]} 15. Nxc4 {[%clk 0:02:10.6]}
15... Bxc4 {[%clk 0:01:42.9]} 16. dxc4 {[%clk 0:02:11.5]} 16... Ncxe5 {[%clk
0:01:14.1]} 17. Nxe5 {[%clk 0:01:51.9]} 17... Nxe5 {[%clk 0:01:13.6]} 18. f4
{[%clk 0:01:52.1]} 18... d3 {[%clk 0:01:09.9]} 19. Qe4 {[%clk 0:01:51.9]} 19...
d2 {[%clk 0:00:53.3]} 20. fxe5 {[%clk 0:01:47.5]} 20... d1=Q {[%clk 0:00:51.1]}
21. Rxd1 {[%clk 0:01:30.2]} 21... Qxd1+ {[%clk 0:00:52]} 22. Kh2 {[%clk
0:01:31.1]} 22... Rad8 {[%clk 0:00:50.4]} 23. Rb1 {[%clk 0:01:31.2]} 23... Rd4
{[%clk 0:00:47.9]} 24. Bxg5 {[%clk 0:01:29.8]} 24... Qh5 {[%clk 0:00:42.4]} 25.
Qc6 {[%clk 0:01:25.4]} 25... Qxg5 {[%clk 0:00:42.2]} 26. Qxc5 {[%clk 0:01:26.1]}
26... Bxe5 {[%clk 0:00:41.7]} 27. Kh1 {[%clk 0:01:25.7]} 27... Qxg3 {[%clk
0:00:40.9]} 0-1

[Event "Early-Titled-Tuesday-Blitz-October-10-2023"]
[Site "Chess.com"]
[Date "2023.10.10"]
[Round "8"]
[White "pirulillo"]
[Black "lolo9292"]
[Result "1-0"]
[WhiteElo "2343"]
[BlackElo "2157"]
[TimeControl "180+1"]
[EndTime "9:25:49 PDT"]
[Termination "pirulillo won by checkmate"]

1. e4 {[%clk 0:01:25.6]} 1... e5 {[%clk 0:02:50.3]} 2. Bc4 {[%clk 0:01:24.6]}
2... Nc6 {[%clk 0:02:49.1]} 3. d3 {[%clk 0:01:24.2]} 3... Nf6 {[%clk 0:02:47.7]}
4. Nc3 {[%clk 0:01:22.1]} 4... Bb4 {[%clk 0:02:47.3]} 5. Ne2 {[%clk 0:01:22]}
5... d5 {[%clk 0:02:46.6]} 6. exd5 {[%clk 0:01:21.8]} 6... Nxd5 {[%clk
0:02:47.5]} 7. O-O {[%clk 0:01:19.1]} 7... Be6 {[%clk 0:02:45.8]} 8. Bxd5 {[%clk
0:01:18.9]} 8... Bxd5 {[%clk 0:02:46]} 9. f4 {[%clk 0:01:19.4]} 9... O-O {[%clk
0:02:36.7]} 10. f5 {[%clk 0:01:19.3]} 10... Bc5+ {[%clk 0:02:31]} 11. Kh1 {[%clk
0:01:18.6]} 11... Nd4 {[%clk 0:02:31.9]} 12. Nxd5 {[%clk 0:01:12.4]} 12... Nxe2
{[%clk 0:02:28.1]} 13. Qxe2 {[%clk 0:01:10.6]} 13... Qxd5 {[%clk 0:02:28]} 14.
f6 {[%clk 0:01:10.4]} 14... g6 {[%clk 0:02:22.8]} 15. Be3 {[%clk 0:01:06.2]}
15... Bd6 {[%clk 0:02:19.6]} 16. Qf2 {[%clk 0:00:59.2]} 16... Rfe8 {[%clk
0:02:18.6]} 17. Qh4 {[%clk 0:00:53]} 17... e4 {[%clk 0:02:16.9]} 18. Bf4 {[%clk
0:00:47.9]} 18... Bf8 {[%clk 0:02:16.1]} 19. Bh6 {[%clk 0:00:47.4]} 19... Bd6
{[%clk 0:02:14.7]} 20. Bf4 {[%clk 0:00:40.6]} 20... Bf8 {[%clk 0:02:14.2]} 21.
Bh6 {[%clk 0:00:36.7]} 21... Bc5 {[%clk 0:02:14.1]} 22. Bf4 {[%clk 0:00:33.5]}
22... exd3 {[%clk 0:02:14.2]} 23. cxd3 {[%clk 0:00:33.7]} 23... Re6 {[%clk
0:02:12.9]} 24. Rf3 {[%clk 0:00:32.2]} 24... h5 {[%clk 0:02:08.4]} 25. Rg3
{[%clk 0:00:29.3]} 25... Rae8 {[%clk 0:02:06.5]} 26. Rf1 {[%clk 0:00:27.2]}
26... Re1 {[%clk 0:02:04.6]} 27. Rxg6+ {[%clk 0:00:26.7]} 27... fxg6 {[%clk
0:02:02.2]} 28. Rxe1 {[%clk 0:00:27.6]} 28... Rxe1+ {[%clk 0:02:01.5]} 29. Qxe1
{[%clk 0:00:27]} 29... Kf7 {[%clk 0:02:02.1]} 30. Be5 {[%clk 0:00:21.1]} 30...
Qxd3 {[%clk 0:02:01.6]} 31. h3 {[%clk 0:00:19.3]} 31... c6 {[%clk 0:02:01.2]}
32. Bc3 {[%clk 0:00:17.9]} 32... Qe3 {[%clk 0:01:57.9]} 33. Qd1 {[%clk
0:00:17.4]} 33... Ke6 {[%clk 0:01:55.5]} 34. f7 {[%clk 0:00:14.5]} 34... Kxf7
{[%clk 0:01:54.6]} 35. Qd7+ {[%clk 0:00:14.4]} 35... Qe7 {[%clk 0:01:55.2]} 36.
Qd3 {[%clk 0:00:13.9]} 36... b5 {[%clk 0:01:53.1]} 37. Qf3+ {[%clk 0:00:13.3]}
37... Kg8 {[%clk 0:01:49.9]} 38. Qxc6 {[%clk 0:00:14.2]} 38... Qd6 {[%clk
0:01:43.4]} 39. Qe8+ {[%clk 0:00:13.2]} 39... Kh7 {[%clk 0:01:37]} 40. Qh8#
{[%clk 0:00:12.3]} 1-0

[Event "Early-Titled-Tuesday-Blitz-October-10-2023"]
[Site "Chess.com"]
[Date "2023.10.10"]
[Round "8"]
[White "C_K_G"]
[Black "Ishowmoves57"]
[Result "1-0"]
[WhiteElo "1954"]
[BlackElo "2176"]
[TimeControl "180+1"]
[EndTime "9:25:51 PDT"]
[Termination "C_K_G won by resignation"]

1. e4 {[%clk 0:02:54.7]} 1... c5 {[%clk 0:02:59.8]} 2. Nf3 {[%clk 0:02:54.5]}
2... Nc6 {[%clk 0:03:00.3]} 3. d4 {[%clk 0:02:54.6]} 3... cxd4 {[%clk
0:03:01.2]} 4. Nxd4 {[%clk 0:02:54.7]} 4... e5 {[%clk 0:03:01.9]} 5. Nxc6 {[%clk
0:02:54]} 5... bxc6 {[%clk 0:03:01.9]} 6. c4 {[%clk 0:02:54.3]} 6... Nf6 {[%clk
0:03:01.7]} 7. Bd3 {[%clk 0:02:54.6]} 7... Bb4+ {[%clk 0:03:00.5]} 8. Bd2 {[%clk
0:02:52.5]} 8... Bxd2+ {[%clk 0:03:00.7]} 9. Qxd2 {[%clk 0:02:51.7]} 9... O-O
{[%clk 0:03:01.3]} 10. Nc3 {[%clk 0:02:51]} 10... Bb7 {[%clk 0:02:57.6]} 11. O-O
{[%clk 0:02:45]} 11... d5 {[%clk 0:02:57.5]} 12. cxd5 {[%clk 0:02:43.8]} 12...
cxd5 {[%clk 0:02:57.6]} 13. exd5 {[%clk 0:02:40.3]} 13... Nxd5 {[%clk
0:02:54.5]} 14. Rad1 {[%clk 0:02:32.7]} 14... Nxc3 {[%clk 0:02:38.6]} 15. Qxc3
{[%clk 0:02:31.5]} 15... Qe7 {[%clk 0:02:31.2]} 16. Rfe1 {[%clk 0:02:18.6]}
16... f6 {[%clk 0:02:23.9]} 17. Qc4+ {[%clk 0:02:09.7]} 17... Kh8 {[%clk
0:02:18.9]} 18. Qh4 {[%clk 0:02:08]} 18... e4 {[%clk 0:02:04.2]} 19. Bxe4 {[%clk
0:02:04.2]} 19... Bxe4 {[%clk 0:02:02.5]} 20. Rxe4 {[%clk 0:02:03.3]} 20... Rad8
{[%clk 0:02:00.8]} 21. Rde1 {[%clk 0:01:59.1]} 21... Qb7 {[%clk 0:01:57.5]} 22.
b3 {[%clk 0:01:54.9]} 22... Rd2 {[%clk 0:01:42.9]} 23. Re8 {[%clk 0:01:43.2]}
23... Qf7 {[%clk 0:01:05.8]} 24. Rxf8+ {[%clk 0:01:27.6]} 24... Qxf8 {[%clk
0:01:05.4]} 25. a4 {[%clk 0:01:19.2]} 25... h6 {[%clk 0:00:41.3]} 26. Qh5 {[%clk
0:01:08.5]} 26... Qg8 {[%clk 0:00:30.8]} 27. h3 {[%clk 0:01:06.7]} 27... Rb2
{[%clk 0:00:27.9]} 28. Re8 {[%clk 0:01:04.5]} 28... Rxb3 {[%clk 0:00:27.3]} 29.
Rxg8+ {[%clk 0:01:03.3]} 29... Kxg8 {[%clk 0:00:23.7]} 30. Qd5+ {[%clk
0:01:02.8]} 1-0